fUSD/lending_fUSD_20240909
["ID","MTS","AMOUNT","RATE_DAILY","PERIOD"]
[337589180,1725868950671,220.6,0.00012219,2]
[337589181,1725868950880,220.6,0.00012222,2]
[337589182,1725868951297,220.6,0.00012225,2]
[337589183,1725868951534,220.6,0.00012228,2]
[337589184,1725868952783,220.6,0.00012231,2]
[337589185,1725868952855,220.6,0.00012235,2]
[337589186,1725868952928,220.6,0.00012238,2]
[337589187,1725868953133,220.6,0.00012241,2]
[337589188,1725868957340,250.0,0.00012207,2]
[337589189,1725868976838,500.0,0.00012207,3]
[337589190,1725868982412,500.0,0.00012207,2]
[337589191,1725868983839,201.27,0.00012208,2]
[337589192,1725869037338,157.62,0.00010959,2]
[337589193,1725869082879,250.0,0.00012302,2]
[337589194,1725869119962,233.39425541,0.0001224,2]
[337589208,1725869175575,1116.78,0.00012389,2]
[337589209,1725869198609,-2299.28,0.00012526,2]
[337589210,1725869198632,-500.0,0.00012534,2]
[337589211,1725869198656,-600.0,0.00012534,2]
[337589212,1725869198682,-187.456,0.00012691,2]
[337589213,1725869198714,-420.66956482,0.00012694,2]
[337589214,1725869198742,-150.0,0.00012726,2]
[337589215,1725869198767,-150.0,0.00012731,2]
[337589216,1725869198965,-150.0,0.00012734,2]
[337589217,1725869198991,-150.0,0.00012735,2]
[337589218,1725869199015,-150.0,0.00012741,2]
[337589219,1725869199039,-150.0,0.00012747,2]
[337589220,1725869199064,-150.0,0.00012747,2]
[337589221,1725869199090,-150.0,0.00012748,2]
[337589222,1725869199113,-150.0,0.00012756,2]
[337589223,1725869199139,-150.0,0.00012758,2]
[337589224,1725869199164,-150.0,0.0001276,2]
[337589225,1725869199188,-150.0,0.00012761,2]
[337589226,1725869199215,-150.0,0.00012763,2]
[337589227,1725869199241,-150.0,0.00012769,2]
[337589228,1725869199266,-150.0,0.0001277,2]
[337589229,1725869199291,-150.0,0.00012777,2]
[337589230,1725869199318,-150.0,0.00012784,2]
[337589231,1725869199343,-150.0,0.00012784,2]
[337589232,1725869199369,-150.0,0.00012785,2]
[337589233,1725869199396,-150.0,0.00012785,2]
[337589234,1725869199421,-150.0,0.0001279,2]
[337589235,1725869199445,-150.0,0.0001279,2]
[337589236,1725869199470,-300.0,0.00012791,2]
[337589237,1725869199494,-205.94,0.00012792,2]
[337589238,1725869199519,-150.0,0.00012793,2]
[337589239,1725869199544,-150.0,0.00012795,2]
[337589240,1725869199578,-150.0,0.00012796,2]
[337589241,1725869199603,-150.0,0.000128,2]
[337589242,1725869199628,-150.0,0.00012802,2]
[337589243,1725869199653,-150.0,0.00012804,2]
[337589244,1725869199683,-150.0,0.00012808,2]
[337589245,1725869199711,-150.0,0.00012815,2]
[337589246,1725869199738,-150.0,0.00012819,2]
[337589247,1725869199765,-150.0,0.00012819,2]
[337589248,1725869199792,-150.0,0.00012819,2]
[337589249,1725869199818,-150.0,0.00012825,2]
[337589250,1725869199843,-150.0,0.00012842,2]
[337589251,1725869199868,-150.0,0.00012842,2]
[337589252,1725869199894,-150.0,0.00012842,2]
[337589253,1725869199921,-150.0,0.00012844,2]
[337589254,1725869199947,-150.0,0.00012845,2]
[337589255,1725869199973,-150.0,0.00012858,2]
[337589256,1725869200000,-150.0,0.00012858,2]
[337589257,1725869211320,264.84,0.00011877,2]
[337589258,1725869231843,200.0,0.000124,4]
[337589259,1725869233941,500.0,0.000125,4]
[337589260,1725869236070,800.0,0.000126,4]
[337589263,1725869238180,1000.0,0.000127,4]
[337589264,1725869240840,1300.0,0.000128,4]
[337589267,1725869264259,500.0,0.00011164,2]
[337589268,1725869266803,500.0,0.00011164,2]
[337589269,1725869268628,500.0,0.00012534,2]
[337589270,1725869323079,52506.0,0.00012741,2]
[337589271,1725869385824,164.41,0.00011943,2]
[337589275,1725869431491,200.0,0.00011941,2]
[337589287,1725869431643,-150.0,0.00012861,2]
[337589289,1725869431653,-150.0,0.00012863,2]
[337589291,1725869431663,-150.0,0.00012863,2]
[337589292,1725869431673,-150.0,0.00012868,2]
[337589293,1725869431682,-150.0,0.00012869,2]
[337589294,1725869431692,-150.0,0.00012869,2]
[337589295,1725869431702,-300.0,0.00012869,2]
[337589296,1725869431711,-1534.54380811,0.0001287,2]
[337589297,1725869431723,-267.43172189,0.0001287,2]
[337589298,1725869431733,-500.95716207,0.0001287,2]
[337589299,1725869431745,-609.63404358,0.0001287,2]
[337589300,1725869431756,-691.38431435,0.0001287,2]
[337589301,1725869431766,-64.65379266,0.00012881,2]
[337589302,1725869431780,-85.34620734,0.00012881,2]
[337589303,1725869431790,-150.0,0.00012885,2]
[337589304,1725869431802,-150.0,0.00012886,2]
[337589305,1725869431812,-150.0,0.00012888,2]
[337589306,1725869431821,-150.0,0.00012888,2]
[337589307,1725869431831,-150.0,0.00012891,2]
[337589308,1725869431842,-347.36470979,0.00012891,2]
[337589309,1725869431873,-652.62529021,0.00012891,2]
[337589310,1725869431885,-150.99,0.00012891,2]
[337589311,1725869431895,-1812.71,0.00012891,2]
[337589312,1725869431905,-150.0,0.00012898,2]
[337589313,1725869431915,-165.447,0.000129,2]
[337589314,1725869431924,-1452.06571884,0.000129,2]
[337589315,1725869431936,-5323.43032859,0.000129,2]
[337589317,1725869431980,-22976.99395257,0.000129,2]
[337589319,1725869431990,-499.99,0.000129,2]
[337589321,1725869432000,-844.06,0.000129,2]
[337589323,1725869432010,-499.99,0.000129,2]
[337589325,1725869432020,-365.21,0.000129,2]
[337589327,1725869432030,-2230.19313259,0.000129,2]
[337589329,1725869432043,-161.65921544,0.000129,2]
[337589331,1725869432053,-200.0,0.000129,4]
[337589333,1725869432063,-7500.0,0.000129,2]
[337589335,1725869432073,-182.27851587,0.000129,2]
[337589337,1725869432083,-319.21099951,0.000129,2]
[337589338,1725869432093,-2500.0,0.000129,2]
[337589339,1725869432104,-2500.0,0.000129,2]
[337589340,1725869432114,-150.0,0.00012903,2]
[337589341,1725869432125,-150.0,0.00012907,2]
[337589342,1725869432135,-150.0,0.00012908,2]
[337589343,1725869432145,-150.0,0.00012909,2]
[337589344,1725869432155,-150.0,0.00012909,2]
[337589345,1725869432164,-150.0,0.0001291,2]
[337589346,1725869432174,-150.0,0.00012911,2]
[337589347,1725869432183,-150.0,0.00012916,2]
[337589348,1725869432193,-150.0,0.00012917,2]
[337589349,1725869432203,-150.0,0.00012923,2]
[337589350,1725869432212,-150.0,0.00012927,2]
[337589351,1725869432222,-150.0,0.00012931,2]
[337589352,1725869432232,-150.0,0.00012937,2]
[337589353,1725869432242,-150.0,0.00012937,2]
[337589354,1725869432252,-1499.26,0.0001294,2]
[337589355,1725869432262,-150.99,0.0001294,2]
[337589356,1725869432272,-150.0,0.00012941,2]
[337589357,1725869432282,-150.0,0.00012943,2]
[337589358,1725869432292,-287.64417964,0.00012948,2]
[337589359,1725869432302,-150.0,0.00012956,2]
[337589360,1725869432312,-150.0,0.00012957,2]
[337589361,1725869432321,-150.0,0.0001296,2]
[337589362,1725869432331,-150.0,0.00012964,2]
[337589363,1725869432340,-150.0,0.00012972,2]
[337589364,1725869432350,-391.80936884,0.00012973,2]
[337589365,1725869432359,-500.0,0.00012973,2]
[337589366,1725869432368,-500.0,0.00012973,2]
[337589367,1725869432378,-150.0,0.00012979,2]
[337589368,1725869432388,-150.0,0.00012981,2]
[337589369,1725869432397,-150.0,0.00012983,2]
[337589370,1725869432407,-150.0,0.00012983,2]
[337589371,1725869432416,-150.0,0.00012985,2]
[337589372,1725869432425,-153.32,0.0001299,2]
[337589373,1725869432435,-153.32,0.0001299,2]
[337589374,1725869432445,-153.32,0.0001299,2]
[337589375,1725869432454,-153.32,0.0001299,2]
[337589376,1725869432464,-153.32,0.0001299,2]
[337589377,1725869432473,-153.32,0.0001299,2]
[337589378,1725869432483,-153.32,0.0001299,2]
[337589379,1725869432492,-153.32,0.0001299,2]
[337589380,1725869432502,-153.32,0.0001299,2]
[337589381,1725869432511,-153.32,0.0001299,2]
[337589382,1725869432521,-153.32,0.0001299,2]
[337589383,1725869432530,-153.32,0.0001299,2]
[337589384,1725869432540,-153.32,0.0001299,2]
[337589385,1725869432553,-153.32,0.0001299,2]
[337589386,1725869432562,-153.32,0.0001299,2]
[337589387,1725869432572,-153.32,0.0001299,2]
[337589388,1725869432582,-153.32,0.0001299,2]
[337589389,1725869432592,-153.32,0.0001299,2]
[337589390,1725869432602,-153.32,0.0001299,2]
[337589391,1725869432611,-153.32,0.0001299,2]
[337589392,1725869432621,-500.0,0.00012999,2]
[337589393,1725869432630,-500.0,0.00012999,2]
[337589394,1725869432640,-473.75395191,0.00012999,2]
[337589395,1725869432651,-500.0,0.00012999,2]
[337589396,1725869432662,-500.0,0.00012999,2]
[337589397,1725869432672,-489.97103638,0.00012999,2]
[337589398,1725869432682,-349.87524111,0.00012999,2]
[337589399,1725869432691,-915.48,0.00012999,2]
[337589400,1725869432701,-150.0,0.00012999,2]
[337589401,1725869432710,-150.0,0.00012999,2]
[337589402,1725869432720,-313020.25487059,0.00013,2]
[337589403,1725869432734,-953.4260579,0.00013,2]
[337589404,1725869432745,-3273.10212446,0.00013,2]
[337589405,1725869432789,-307.84685496,0.000129,2]
[337589406,1725869432800,-1739.44478656,0.00013,2]
[337589407,1725869432811,-661.83076547,0.00013,2]
[337589408,1725869432941,-43512.38,0.00013,2]
[337589409,1725869432953,-600.09293378,0.00013,2]
[337589410,1725869435604,2069.35,0.00010025,2]
[337589411,1725869435805,2069.35,0.00012289,2]
[337589414,1725869437577,-16932.32639603,0.00013,2]
[337589415,1725869437588,-519.57729906,0.00013,2]
[337589416,1725869437600,-11397.85447334,0.00013,2]
[337589417,1725869437611,-3413.85644702,0.00013,2]
[337589418,1725869437622,-4032.83102732,0.00013,2]
[337589419,1725869437633,-54589.35873654,0.00013,2]
[337589420,1725869437643,-459.01463883,0.00013,2]
[337589421,1725869437678,-858.216,0.00013,2]
[337589422,1725869437701,-1379.86572107,0.00013,2]
[337589423,1725869437712,-2570.50200004,0.00013,2]
[337589424,1725869437742,-5878.35106938,0.00013,2]
[337589425,1725869437753,-18092.13124243,0.00013,2]
[337589426,1725869437764,-6057.23386798,0.00013,2]
[337589427,1725869437775,-13121.56862149,0.00013,2]
[337589428,1725869437787,-24654.16122351,0.00013,2]
[337589429,1725869437799,-22243.24876,0.00013,2]
[337589430,1725869437818,-1590.380762,0.00013,2]
[337589431,1725869437831,-3932.27750587,0.00013,2]
[337589432,1725869437842,-463.4202856,0.00013,2]
[337589433,1725869437853,-1363.02997939,0.00013,2]
[337589434,1725869437864,-290.08119832,0.00013,2]
[337589435,1725869437891,-2352797.45195103,0.00013,2]
[337589436,1725869437904,-662807.17135979,0.00013,2]
[337589437,1725869437916,-1398218.83588162,0.00013,2]
[337589438,1725869437928,-2426.81983942,0.00013,2]
[337589440,1725869437939,-5106.10000249,0.00013,2]
[337589469,1725869440000,-1301.90749695,0.00013,2]
[337589470,1725869440012,-3784.86407962,0.00013,2]
[337589471,1725869440023,-561.97850452,0.00013,2]
[337589472,1725869440034,-14769.35656793,0.00013,2]
[337589473,1725869440048,-3084.36909757,0.00013,2]
[337589474,1725869440060,-16040.5,0.00013,2]
[337589475,1725869440071,-621.45760524,0.00013,2]
[337589476,1725869440083,-322.50000001,0.00013,2]
[337589477,1725869440094,-3670.93476964,0.00013,2]
[337589478,1725869440122,-293.73164667,0.00013,2]
[337589479,1725869440134,-279.37734147,0.00013,2]
[337589480,1725869440157,-1596.88006637,0.00013,2]
[337589481,1725869440172,-2327.8579357,0.00013,2]
[337589482,1725869440184,-340.78144659,0.00013,2]
[337589483,1725869440194,-600.70263248,0.00013,2]
[337589484,1725869440206,-351.6767498,0.00013,2]
[337589485,1725869440217,-639.318,0.00013,2]
[337589486,1725869440228,-1028.443,0.00013,2]
[337589487,1725869440239,-308922.40255435,0.00013,2]
[337589488,1725869440263,-1156.2,0.00013,2]
[337589489,1725869440274,-2689.99555988,0.00013,2]
[337589490,1725869440285,-333.81892786,0.00013,2]
[337589491,1725869440298,-792.54507562,0.00013,2]
[337589492,1725869440313,-1668.94830626,0.00013,2]
[337589493,1725869440336,-4786.36046934,0.00013,2]
[337589494,1725869440347,-3198.49104601,0.00013,2]
[337589504,1725869443661,-2581.2614539,0.00013,2]
[337589505,1725869443674,-1095.78215054,0.00013,2]
[337589506,1725869443700,-2999.6587433,0.00013,2]
[337589507,1725869443712,-11553.72772845,0.00013,2]
[337589508,1725869443743,-541.92539657,0.00013,2]
[337589509,1725869443754,-697.68583,0.00013,2]
[337589510,1725869443765,-720.02828238,0.00013,2]
[337589511,1725869443777,-502.49912,0.00013,2]
[337589512,1725869443791,-485.29999995,0.00013,2]
[337589513,1725869443803,-505.5664408,0.00013,2]
[337589514,1725869443861,-7595.75675507,0.00013,2]
[337589515,1725869443872,-1308.00000413,0.00013,2]
[337589516,1725869443883,-23521.76724492,0.00013,2]
[337589517,1725869443895,-19449.65560328,0.00013,2]
[337589518,1725869443906,-863.18646921,0.00013,2]
[337589519,1725869443917,-1317.00601232,0.00013,2]
[337589520,1725869443928,-1240.38172753,0.00013,2]
[337589521,1725869446043,-266.71297818,0.00013,2]
[337589522,1725869446058,-541.614,0.00013,2]
[337589523,1725869446072,-111099.74666655,0.00013,2]
[337589524,1725869446124,-252.76883574,0.00013,2]
[337589527,1725869446136,-399.98561821,0.00013,2]
[337589531,1725869446162,-3627.57220054,0.00013,2]
[337589534,1725869446174,-1011.57802586,0.00013,2]
[337589535,1725869446192,-9804.0114,0.00013,2]
[337589536,1725869446203,-5441.6,0.00013,2]
[337589538,1725869520688,487.03368496,0.00012721,2]
[337589539,1725869532945,250.0,0.00012672,2]
[337589540,1725869555906,1000.0,0.00012672,2]
[337589544,1725869633311,4282.58116524,0.000128,2]
[337589545,1725869636518,250.0,0.00012639,2]
[337589547,1725869661450,172.8445,0.000128,2]
[337589548,1725869666407,750.0,0.00011,2]
[337589549,1725869671159,19570.24508498,0.000128,2]
[337589551,1725869707369,156.46,0.00012212,2]
[337589552,1725869754900,558.39,0.00012207,2]
[337589553,1725869817637,250.0,0.00012214,2]
[337589554,1725869891218,21540.35400942,0.0001285,30]
[337589555,1725869894262,200.0,0.00012214,2]
[337589556,1725869901716,164.41,0.00012223,2]
[337589557,1725869926244,1897.03,0.00010299,2]
[337589558,1725870022895,158.52,0.00012047,2]
[337589559,1725870023107,158.52,0.00012051,2]
[337589560,1725870023281,158.52,0.00012055,2]
[337589561,1725870023560,158.52,0.00012059,2]
[337589562,1725870023780,158.52,0.00012062,2]
[337589563,1725870023900,158.52,0.00012066,2]
[337589564,1725870026298,158.52,0.0001207,2]
[337589565,1725870026388,158.52,0.00012074,2]
[337589566,1725870026596,158.52,0.00012077,2]
[337589567,1725870026831,158.52,0.00012081,2]
[337589568,1725870027124,158.52,0.00012085,2]
[337589569,1725870027258,158.52,0.00012089,2]
[337589570,1725870027654,158.52,0.00012092,2]
[337589571,1725870027919,158.52,0.00012096,2]
[337589572,1725870028095,158.52,0.000121,2]
[337589573,1725870028292,158.52,0.00012104,2]
[337589574,1725870028472,158.52,0.00012108,2]
[337589575,1725870040996,250.0,0.00012047,2]
[337589576,1725870081597,21578.39,0.00012042,2]
[337589577,1725870138454,250.0,0.00012038,2]
[337589578,1725870203442,156.46,0.00012401,2]
[337589579,1725870235797,1000.0,0.00012309,2]
[337589580,1725870351628,697.52438471,0.00010988,2]
[337589581,1725870354965,604.7,6.94e-05,2]
[337589582,1725870355049,170.81,0.00012181,2]
[337589583,1725870367298,1474.97098833,0.0001,2]
[337589584,1725870394608,250.0,0.00012075,2]
[337589586,1725870410182,22000.0,0.000132,120]
[337589587,1725870414359,177.0,0.00028,120]
[337589588,1725870426878,164.41,0.0001208,2]
[337589590,1725870441470,205.0,9.8e-05,2]
[337589591,1725870467407,1802.17,0.00010155,2]
[337589592,1725870467518,1802.17,0.00012419,2]
[337589594,1725870481610,279.19,0.00012096,2]
[337589595,1725870516209,1015.60156944,0.00010998,2]
[337589597,1725870526365,160.28736016,0.00012,2]
[337589631,1725870604964,-150.0,0.00012799,2]
[337589632,1725870604994,-298.78217594,0.000128,2]
[337589633,1725870605027,-7237.08645385,0.000128,2]
[337589634,1725870605076,-7685.86862979,0.000128,2]
[337589635,1725870605119,-1080.59503138,0.000128,2]
[337589636,1725870605148,-3665.90950455,0.000128,2]
[337589952,1725870631936,-552.46305185,0.000128,2]
[337589954,1725870631957,-4835.63922378,0.000128,2]
[337589957,1725870631989,-298.62086198,0.000128,2]
[337589963,1725870632120,-2306.26329162,0.000128,2]
[337589965,1725870632132,-3391.35056622,0.000128,2]
[337589966,1725870632141,-1000.0,0.000128,2]
[337589968,1725870632150,-904.21295633,0.000128,2]
[337589969,1725870632162,-2698.08444367,0.000128,2]
[337589970,1725870632171,-2258.98230918,0.000128,2]
[337589972,1725870632181,-5335.90889082,0.000128,2]
[337589973,1725870632191,-948.5528,0.000128,2]
[337589975,1725870632200,-291.3277,0.000128,2]
[337589976,1725870632210,-2248.4717,0.000128,2]
[337589978,1725870632222,-161.2184,0.000128,2]
[337589979,1725870632231,-1731.2885,0.000128,2]
[337589980,1725870632240,-1000.0,0.000128,2]
[337589982,1725870632249,-7500.0,0.000128,2]
[337589983,1725870632259,-226.68700808,0.000128,2]
[337589984,1725870632268,-12334.6481,0.000128,2]
[337589986,1725870632277,-689.2802,0.000128,2]
[337589987,1725870632286,-3854.32304877,0.000128,2]
[337589988,1725870632295,-2500.0,0.000128,2]
[337589990,1725870632306,-7049.80331655,0.000128,2]
[337589991,1725870632315,-2500.0,0.000128,2]
[337589993,1725870632324,-319.2109995,0.000128,2]
[337589994,1725870632334,-3854.3230487,0.00012811,2]
[337589995,1725870632343,-226.68700807,0.00012816,2]
[337589997,1725870632352,-3854.3230487,0.00012822,2]
[337589998,1725870632361,-226.68700807,0.00012831,2]
[337590000,1725870632370,-3854.3230487,0.00012833,2]
[337590001,1725870632379,-3854.3230487,0.00012844,2]
[337590002,1725870632389,-226.68700807,0.00012847,2]
[337590004,1725870632398,-436.95,0.00012847,2]
[337590005,1725870632407,-179.36,0.0001285,2]
[337590006,1725870632417,-3854.3230487,0.00012856,2]
[337590008,1725870632426,-226.68700807,0.00012863,2]
[337590009,1725870632436,-3854.3230487,0.00012867,2]
[337590011,1725870632446,-1936.54303228,0.0001287,2]
[337590012,1725870632455,-1801.97552,0.0001287,2]
[337590013,1725870632464,-150.99,0.0001287,2]
[337590015,1725870632473,-5138.1737,0.00012877,2]
[337590016,1725870632483,-3854.3230487,0.00012878,2]
[337590017,1725870632492,-226.68700807,0.00012879,2]
[337590019,1725870632501,-1163.15,0.00012879,2]
[337590020,1725870632511,-3854.3230487,0.00012889,2]
[337590022,1725870632520,-154.53,0.0001289,2]
[337590023,1725870632529,-226.68700807,0.00012894,2]
[337590024,1725870632538,-916.28433336,0.00012899,3]
[337590026,1725870632550,-154.21686161,0.00012899,3]
[337590027,1725870632559,-206.02964039,0.00012899,3]
[337590227,1725870637786,-864.47155458,0.00012899,3]
[337590229,1725870637796,-142.60720299,0.00012899,3]
[337590230,1725870637811,-460.09033434,0.00012899,3]
[337590237,1725870637949,-467.80365764,0.00012899,3]
[337590238,1725870637959,-1070.50119497,0.00012899,3]
[337590239,1725870637969,-1070.50119497,0.00012899,3]
[337590241,1725870637980,-1070.50119497,0.00012899,3]
[337590242,1725870637990,-500.0,0.00012899,2]
[337590244,1725870638000,-345.69537144,0.00012899,2]
[337590245,1725870638010,-500.0,0.00012899,2]
[337590246,1725870638019,-500.0,0.00012899,2]
[337590248,1725870638030,-500.0,0.00012899,2]
[337590249,1725870638040,-306.97511334,0.00012899,2]
[337590251,1725870638050,-500.0,0.000129,2]
[337590252,1725870638060,-26784.42586024,0.000129,2]
[337590374,1725870641090,-256.62236691,0.000129,2]
[337590375,1725870641111,-2063.47265773,0.000129,2]
[337590378,1725870641139,-1050.1,0.000129,2]
[337590379,1725870641151,-4036.9,0.000129,2]
[337590380,1725870641163,-4779.32881512,0.000129,2]
[337590382,1725870641172,-56397.67118489,0.000129,2]
[337590383,1725870641183,-1736.41306025,0.000129,2]
[337590385,1725870641196,-760.74789201,0.000129,2]
[337590388,1725870641251,-320.91406874,0.000129,2]
[337590389,1725870641263,-515.56383828,0.000129,2]
[337590391,1725870641275,-582.83643837,0.000129,2]
[337590392,1725870641286,-1979.79404271,0.000129,2]
[337590394,1725870641296,-1182.8,0.000129,2]
[337590396,1725870641314,-710.32712081,0.000129,2]
[337590397,1725870641325,-666.66,0.000129,2]
[337590399,1725870641337,-1995.77690403,0.000129,2]
[337590400,1725870641348,-33150.49544991,0.000129,2]
[337590401,1725870641358,-74770.56439804,0.000129,2]
[337590403,1725870641373,-507.62484651,0.000129,2]
[337590404,1725870641384,-1058.06846759,0.000129,2]
[337590406,1725870641395,-1195.16112444,0.000129,2]
[337590407,1725870641406,-1340.09190073,0.000129,2]
[337590496,1725870643089,-166128.48926269,0.000129,2]
[337590497,1725870643099,-1479.9066,0.000129,2]
[337590499,1725870643108,-171.17415423,0.000129,2]
[337590500,1725870643118,-3854.3230487,0.000129,2]
[337590501,1725870643127,-615.6937099,0.000129,2]
[337590503,1725870643137,-425.31653702,0.000129,2]
[337590504,1725870643146,-7106.90865003,0.000129,2]
[337590505,1725870643156,-2500.0,0.000129,2]
[337590507,1725870643165,-226.68700807,0.0001291,2]
[337590508,1725870643175,-500.0,0.00012973,2]
[337590510,1725870643184,-299.99,0.0001299,2]
[337590511,1725870643194,-499.99,0.0001299,2]
[337590525,1725870643532,-154.53,0.0001299,2]
[337590527,1725870643548,-154.53,0.0001299,2]
[337590528,1725870643557,-154.53,0.0001299,2]
[337590530,1725870643567,-154.53,0.0001299,2]
[337590531,1725870643577,-154.53,0.0001299,2]
[337590532,1725870643586,-154.53,0.0001299,2]
[337590534,1725870643595,-216.74872698,0.0001299,2]
[337590535,1725870643605,-1711.38455069,0.00012999,2]
[337590537,1725870643615,-1070.50119497,0.00012999,3]
[337590538,1725870643624,-1070.50119497,0.00012999,3]
[337590539,1725870643634,-1070.50119498,0.00012999,3]
[337590541,1725870643643,-1070.50119497,0.00012999,3]
[337590542,1725870643652,-1070.50119497,0.00012999,3]
[337590544,1725870643662,-553905.62535209,0.00013,2]
[337590545,1725870643673,-1000.0,0.00013,2]
[337590546,1725870643685,-18698.76091228,0.00013,2]
[337590548,1725870643694,-1007.60380658,0.00013,2]
[337590549,1725870643704,-800.0,0.00013,2]
[337590551,1725870643713,-2000.0,0.00013,2]
[337590552,1725870643722,-200.0,0.00013,2]
[337590553,1725870643731,-200.0,0.00013,2]
[337590555,1725870643740,-1513.63602514,0.00013,2]
[337590583,1725870644452,-266.87346898,0.00013,2]
[337590587,1725870644537,-40641.29442764,0.00013,2]
[337590589,1725870644548,-1016.1,0.00013,2]
[337590664,1725870646683,-362.68407531,0.000128,2]
[337590665,1725870646695,-137.31592469,0.000128,2]
[337590666,1725870646704,-500.0,0.00012973,2]
[337590668,1725870646713,-1382.97422928,0.00013,2]
[337590669,1725870646724,-86241.7256525,0.00013,2]
[337590671,1725870646735,-5605.89535856,0.00013,2]
[337590672,1725870646753,-1089.88117537,0.00013,2]
[337590674,1725870646764,-2335.18041205,0.00013,2]
[337590675,1725870646775,-1491.15000001,0.00013,2]
[337590681,1725870646888,-430.72220257,0.00013,2]
[337590682,1725870646899,-316.01403212,0.00013,2]
[337590685,1725870646943,-1151.46518539,0.00013,2]
[337590686,1725870646955,-2497.79507697,0.00013,2]
[337590688,1725870646970,-1750.24114476,0.00013,2]
[337590689,1725870646981,-329.20700671,0.00013,2]
[337590690,1725870646991,-824.59977352,0.00013,2]
[337590692,1725870647013,-1383.40857251,0.00013,2]
[337590694,1725870647024,-446.83773922,0.00013,2]
[337590703,1725870647228,-16062.3791908,0.00013,2]
[337590903,1725870901522,150.31,0.00010959,2]
[337590904,1725870911618,250.0,0.00012301,2]
[337590905,1725870977864,625.57,0.0001234,2]
[337590906,1725870983723,257.76,0.0001234,2]
[337590907,1725870993851,1171.66,0.00028,120]
[337590908,1725871029675,193.22,0.00012154,2]
[337590909,1725871038051,164.11,0.00012144,2]
[337590910,1725871069512,1656.3,0.0001017,2]
[337590911,1725871069665,1656.3,0.00012434,2]
[337590912,1725871080593,15270.17,0.00012088,2]
[337590913,1725871097561,339.17051995,0.0002499,60]
[337590914,1725871181846,733.78,0.00012016,2]
[337590915,1725871183619,-200.0,0.00012571,2]
[337590916,1725871183645,-500.0,0.00012604,2]
[337590917,1725871183669,-250.0,0.0001264,2]
[337590918,1725871183693,-307.0,0.00012688,2]
[337590919,1725871189209,-1000.0,0.00012688,2]
[337590920,1725871190106,-1000.0,0.00012688,2]
[337590921,1725871201153,211.87,0.00012151,2]
[337590922,1725871250318,250.0,0.00012175,2]
[337590923,1725871314777,250.0,0.00012317,2]
[337590924,1725871360523,840.0,0.00012365,2]
[337590925,1725871393069,448.13,0.00010959,2]
[337590926,1725871421332,17000.0,0.00028,120]
[337590927,1725871486767,750.0,0.00011,2]
[337590928,1725871519487,150.00000001,0.00011688,2]
[337590929,1725871548447,257.76,0.00012168,2]
[337590930,1725871564689,164.11,0.0001214,2]
[337590932,1725871597406,170.81,0.00012092,2]
[337590933,1725871610535,250.0,0.00012092,2]
[337590939,1725871702463,1490.67,0.00010197,2]
[337590940,1725871702576,1490.67,0.0001246,2]
[337590941,1725871707284,-150.0,0.00012685,2]
[337590942,1725871707312,-300.0,0.00012687,2]